Cogmind - Beta 12 @@@ ROGUE MODE // 2024.01.16 @ 22:03:46 Player: Skulldox Result: Destroyed by D-53 Grenadier with Mini Grenade Launcher Performance ------------- Evolutions (0) 0 Regions Visited (4) 800 Robots Destroyed (24) 120 Value Destroyed (460) 460 Prototype IDs (0) 0 Alien Tech Used (0) 0 Bonus (212) 212 TOTAL SCORE: 1592 Bonus ------- Aligned with FarCom 300 Friendly Fire -88 Cogmind --------- Core Integrity 0/250 Matter 264/300 Energy 100/100 System Corruption 0% Temperature Cool (2) Movement Core (450) Ox8 Location -9/Mines Parts ------- > --- POWER (1) -------- (None) > --- PROPULSION (2) --- Wheel > --- UTILITY (2) ------ Large Storage Unit Seismic Detector > --- WEAPON (2) ------- Rocket Launcher > --- INVENTORY (15) --- Ion Engine Light Ion Engine Light Nuclear Core Light Treads Aluminum Leg Aluminum Leg Wheel High-capacity Matter Pod (82) Supersonic Drone Bay Small Laser Particle Gun Light Assault Rifle Mini Grenade Launcher Mini Grenade Launcher Mini Grenade Launcher Peak State ------------ > --- POWER ------------ Light Nuclear Core > --- PROPULSION ------- Light Treads Compact Wheel > --- UTILITY ---------- Large Storage Unit Seismic Detector > --- WEAPON ----------- Particle Gun Light Assault Rifle > --- INVENTORY -------- Ion Engine Light Ion Engine Light Treads Aluminum Leg Aluminum Leg Wheel Small Laser Mini Grenade Launcher Mini Grenade Launcher [Rating: 11] Favorites ----------- Power Light Nuclear Core Engine Light Ion Engine Power Core Light Nuclear Core Propulsion Light Treads Treads Light Treads Leg Aluminum Leg Wheel Compact Wheel Utility Seismic Detector Device Seismic Detector Storage Large Storage Unit Weapon Light Assault Rifle Energy Gun Particle Gun Ballistic Gun Light Assault Rifle Launcher Mini Grenade Launcher Build | -11 -10 -10 -10 -9 ------- Run | Jun Mat Min Exi Min Slots Evolved . | . . . . . Power . | . . . . . Propulsion . | . . . . . Utility . | . . . . . Weapon . | . . . . . Parts Attached 20 | . 12 7 . 1 Power 4 | . 3 1 . . Engine 2 | . 1 1 . . Core 2 | . 2 . . . Reactor . | . . . . . Propulsion 4 | . 2 2 . . Treads 2 | . 1 1 . . Leg . | . . . . . Wheel 2 | . 1 1 . . Hover . | . . . . . Flight . | . . . . . Utility 4 | . 4 . . . Device 3 | . 3 . . . Storage 1 | . 1 . . . Processor . | . . . . . Hackware . | . . . . . Protection . | . . . . . Artifact . | . . . . . Weapon 8 | . 3 4 . 1 Energy Gun 5 | . 2 3 . . Energy Cannon . | . . . . . Ballistic Gun . | . . . . . Ballistic Cannon . | . . . . . Launcher 3 | . 1 1 . 1 Special Weapon . | . . . . . Impact Weapon . | . . . . . Slashing Weapon . | . . . . . Piercing Weapon . | . . . . . Special Melee Weapon . | . . . . . Unidentified Prototypes . | . . . . . Parts Lost 5 | . 2 1 . 2 Power 2 | . 1 1 . . Propulsion 1 | . . . . 1 Utility 1 | . 1 . . . Weapon 1 | . . . . 1 Highest Loss Streak 2 | . 1 1 . 2 To Critical Strikes . | . . . . . Average Slot Usage (%) 92 | . 98 90 85 85 Engine 2 | . 3 4 . . Core 4 | . 10 . . . Treads 12 | . 11 14 14 14 Leg 2 | . 5 . . . Wheel 12 | . 11 14 14 14 Device 13 | . 12 14 14 14 Storage 14 | . 14 14 14 14 Energy Gun 12 | . 14 9 14 13 Ballistic Gun 14 | . 14 14 14 14 Launcher 1 | . . 4 . . Naked Turns . | . . . . . Heaviest Build 30 | 12 30 30 25 26 Greatest Support 20 | 20 20 20 10 10 Greatest Overweight (x) 2 | . 1 2 2 2 Average Overweight (x) 1 | . . 1 2 2 Largest Inventory Capacity 15 | 8 15 15 15 15 Average Capacity 12 | 8 9 15 15 15 Most Carried 15 | 6 12 15 15 15 Average Carried 12 | 6 8 14 15 14 Final Capacity 15 | 8 15 15 15 15 Final Carried 15 | 6 12 15 15 15 Class Distribution -------------------- 100% | Mutant Dominant Class ---------------- Mutant | -10/Materials Mutant | -10/Mines Mutant | -10/Exiles Mutant | -9/Mines Resources | -11 -10 -10 -10 -9 ----------- Run | Jun Mat Min Exi Min Matter Collected 626 | 200 138 264 . 24 Remotely . | . . . . . Salvage Created 465 | . 365 72 . 28 Parts 34 | . 19 14 . 1 Haulers Intercepted 1 | . 1 . . . Recyclers Shooed . | . . . . . Parts Field Recycled . | . . . . . Retrieved Matter . | . . . . . Parts Self-Destructed . | . . . . . Prevented . | . . . . . Kills | -11 -10 -10 -10 -9 ------- Run | Jun Mat Min Exi Min Combat Hostiles Destroyed 24 | . 9 11 . 4 Guns 9 | . 8 1 . . AOE 14 | . . 10 . 4 Classes Destroyed 7 | . 4 1 . 2 Worker 1 | . . 1 . . Hauler 1 | . 1 . . . Watcher 1 | . 1 . . . Swarmer 12 | . 3 9 . . Grunt 8 | . 6 2 . . Zionite 1 | . . . . 1 Assembled 4 | . . . . 4 Best Kill Streak 4 | . 2 4 . 4 Combat Bots Only 4 | . 2 3 . 4 Max Kills in Single Turn 3 | . 1 3 . 2 Gunslinging . | . . . . . Exploded 3 | . . 3 . 2 Melee . | . . . . . Uniques/NPCs Destroyed . | . . . . . Combat | -11 -10 -10 -10 -9 -------- Run | Jun Mat Min Exi Min Damage Taken 916 | . 495 251 . 170 Core 258 | . 128 78 . 52 Absorbed by Shields . | . . . . . Core Remaining (%) 100 | 100 . . . . Volleys Fired 65 | . 50 12 . 3 Largest 2 | . 2 2 . 2 Hottest 85 | . 85 85 . 53 Shots Fired 113 | . 94 13 . 6 Gun 99 | . 94 2 . 3 Cannon . | . . . . . Launcher 14 | . . 11 . 3 Special . | . . . . . Kinetic 54 | . 50 1 . 3 Thermal 45 | . 44 1 . . Explosive 14 | . . 11 . 3 Electromagnetic . | . . . . . Robot Hit Streak 13 | . 13 2 . 3 Robot Miss Streak 5 | . 5 1 . 1 Penetration Max . | . . . . . Secondary Targets . | . . . . . Shots Hit Robots 62 | . 56 3 . 3 Core Hits 41 | . 21 12 . 8 Critical Kills . | . . . . . Critical Parts Destroyed . | . . . . . Critical Strikes 1 | . 1 . . . Burn 1 | . 1 . . . Melee Attacks . | . . . . . Impact . | . . . . . Slashing . | . . . . . Piercing . | . . . . . Sneak Attacks . | . . . . . Combat Hostiles . | . . . . . Follow-up Attacks . | . . . . . Damage Inflicted 1898 | . 603 855 . 440 Guns 618 | . 603 7 . 8 Cannons . | . . . . . Explosions 1280 | . . 848 . 432 Melee . | . . . . . Ramming . | . . . . . Kinetic 270 | . 255 7 . 8 Thermal 348 | . 348 . . . Explosive 1280 | . . 848 . 432 Electromagnetic . | . . . . . Impact . | . . . . . Slashing . | . . . . . Piercing . | . . . . . Highest Corruption . | . . . . . Average Corruption . | . . . . . Corruption Purged . | . . . . . Corruption Blocked . | . . . . . Overload Shots . | . . . . . Overflow Damage 78 | . . 64 . 14 Projectiles . | . . . . . Explosions 78 | . . 64 . 14 Melee . | . . . . . Knockbacks . | . . . . . Impact . | . . . . . Kinetic . | . . . . . Secondary . | . . . . . Self-Inflicted Damage 128 | . . 128 . . Shots 4 | . . 4 . . Rammed . | . . . . . Targets Rammed . | . . . . . Kicked . | . . . . . Crushed . | . . . . . Highest Temperature 306 | . 306 34 . 2 Average Temperature 103 | . 108 16 . 1 Received Heat Transfer 231 | . 192 39 . . Siege Activations . | . . . . . Robots Corrupted . | . . . . . Combat Hostiles . | . . . . . Parts Fried . | . . . . . Impact Corruptions . | . . . . . Robots Melted 1 | . 1 . . . Combat Hostiles 1 | . 1 . . . Parts Melted 2 | . 2 . . . Heat Transferred 1036 | . 1036 . . . Parts Sabotaged . | . . . . . Parts Stolen . | . . . . . Parts Stripped . | . . . . . Power Chain Reactions . | . . . . . Missiles Intercepted . | . . . . . Alert | -11 -10 -10 -10 -9 ------- Run | Jun Mat Min Exi Min Peak Influence 335 | . 168 335 . 11 Initial . | . . . . . Average 86 | . 66 134 . . Maximum Alert Level 1 | . . 1 . . Low Security (%) 95 | 100 100 89 . 100 Level 1 4 | . . 10 . . Level 2 . | . . . . . Level 3 . | . . . . . Level 4 . | . . . . . Level 5 . | . . . . . High Security . | . . . . . Max Security . | . . . . . Squads Dispatched 3 | . 3 . . . Investigation 1 | . 1 . . . Extermination . | . . . . . Reinforcement 2 | . 2 . . . Assault . | . . . . . Garrison . | . . . . . Intercept . | . . . . . Searches Triggered . | . . . . . Construction Impeded . | . . . . . Haulers Reinforced . | . . . . . Active Scanning Responses . | . . . . . Cargo Convoy Interrupts . | . . . . . Stealth | -11 -10 -10 -10 -9 --------- Run | Jun Mat Min Exi Min Distress Signals . | . . . . . Communications Jammed . | . . . . . Distress Signals . | . . . . . Times Spotted 38 | . 15 9 . 14 Peak Tracking Total 8 | . 4 3 . 8 Tactical Retreats . | . . . . . Traps | -11 -10 -10 -10 -9 ------- Run | Jun Mat Min Exi Min Traps Triggered 2 | . 2 . . . Indirectly . | . . . . . Trap Hack Attempts . | . . . . . Triggered . | . . . . . Disarmed . | . . . . . Reprogrammed . | . . . . . Reused . | . . . . . Traps Extracted . | . . . . . Installed . | . . . . . Triggered . | . . . . . Exploded 1 | . . . 1 . Machines | -11 -10 -10 -10 -9 ---------- Run | Jun Mat Min Exi Min Machines Disabled 1 | . 1 . . . Max in Single Turn 1 | . 1 . . . Machines Repaired . | . . . . . Machines Sabotaged . | . . . . . Overloaded Fab Kills . | . . . . . Hacking | -11 -10 -10 -10 -9 --------- Run | Jun Mat Min Exi Min Machines Accessed 4 | . 4 . . . Terminals 3 | . 3 . . . Fabricators . | . . . . . Repair Stations . | . . . . . Recycling Units 1 | . 1 . . . Scanalyzers . | . . . . . Garrison Access . | . . . . . Total Hacks 5 | . 5 . . . Successful 2 | . 2 . . . Failed 3 | . 3 . . . Catastrophic 1 | . 1 . . . Database Lockouts . | . . . . . Manual 5 | . 4 . 1 . Terminals 4 | . 4 . . . Fabricators . | . . . . . Repair Stations . | . . . . . Recycling Units 1 | . 1 . . . Scanalyzers . | . . . . . Garrison Access . | . . . . . Terminal Hacks 2 | . 2 . . . Robot Analysis 1 | . 1 . . . Branch Access Points 1 | . 1 . . . Fabricator Hacks . | . . . . . Repair Station Hacks . | . . . . . Recycling Unit Hacks . | . . . . . Scanalyzer . | . . . . . Garrison Access Hacks . | . . . . . Unauthorized Hacks . | . . . . . Terminals . | . . . . . Fabricators . | . . . . . Repair Stations . | . . . . . Recycling Units . | . . . . . Scanalyzers . | . . . . . Garrison Access . | . . . . . Data Cores Recovered . | . . . . . Used . | . . . . . Hacking Detections 3 | . 3 . . . Full Trace Events . | . . . . . Feedback Events . | . . . . . Feedback Blocked . | . . . . . Robot Schematics Acquired . | . . . . . Robots Built . | . . . . . Authchips . | . . . . . Time . | . . . . . Total Robot Build Rating . | . . . . . Part Schematics Acquired . | . . . . . Parts Built . | . . . . . Authchips . | . . . . . Time . | . . . . . Total Part Build Rating . | . . . . . Parts Repaired . | . . . . . Time . | . . . . . Parts Recycled . | . . . . . Recycled Matter . | . . . . . Retrieved Matter . | . . . . . Retrieved Components . | . . . . . Parts Scanalyzed . | . . . . . Part Schematics Acquired . | . . . . . Parts Damaged . | . . . . . Bothacking | -11 -10 -10 -10 -9 ------------ Run | Jun Mat Min Exi Min Used RIF Installer . | . . . . . Robots Hacked . | . . . . . Non-combat . | . . . . . Combat . | . . . . . Robot Hacks Applied . | . . . . . Relay Couplers Released . | . . . . . Fabnet Peak Effective % . | . . . . . Robots Rewired . | . . . . . Allies Hacked . | . . . . . Hacks Repelled . | . . . . . Allies | -11 -10 -10 -10 -9 -------- Run | Jun Mat Min Exi Min Total Allies 1 | . . . . 1 Largest Group 1 | . . . . 1 Highest-Rated Group 31 | . . . . 31 Highest-Rated Ally 31 | . . . . 31 Total Orders . | . . . . . Ally Attacks 3 | . . . . 3 Total Damage . | . . . . . Kills . | . . . . . Allies Corrupted . | . . . . . Allies Melted . | . . . . . Intel | -11 -10 -10 -10 -9 ------- Run | Jun Mat Min Exi Min Robot Analysis Total 1 | . 1 . . . Derelict Logs Recovered 2 | . . 2 . . Drone Launches . | . . . . . Drone Recoveries . | . . . . . Exploration | -11 -10 -10 -10 -9 ------------- Run | Jun Mat Min Exi Min Turns Passed 2375 | 4 962 897 230 282 Spaces Moved 1625 | 4 535 643 208 235 Core . | . . . . . Treads 121 | . 48 73 . . Legs 105 | 4 101 . . . Wheels 1399 | . 386 570 208 235 Hover . | . . . . . Flight . | . . . . . Fastest Speed 100 | 120 100 110 110 110 Average Speed 117 | 120 114 126 110 110 Slowest Speed 240 | 120 160 240 110 110 Overloaded Moves . | . . . . . Propulsion Burnouts . | . . . . . Robots Hopped . | . . . . . Cave-ins Triggered . | . . . . . Exploration Rate (%) 64 | 2 91 98 60 70 Regions Visited 4 Branch Regions 3 Pre-discovered Areas . | . . . . . Known Exits Taken 1 | . 1 . . . Unknown Exits Taken 3 | 1 . 1 1 . Scrap Searched 2 | . . 1 . 1 Spaces Dug 30 | . . 30 . . Terrain Destroyed 134 | . . 102 . 32 Melee . | . . . . . Projectile . | . . . . . AOE 134 | . . 102 . 32 Terrain Rammed . | . . . . . Walls Destroyed . | . . . . . Machines Disabled . | . . . . . Actions | -11 -10 -10 -10 -9 --------- Run | Jun Mat Min Exi Min Total 1976 | 3 799 712 209 253 Wait 250 | . 192 46 . 12 Move 1621 | 3 534 642 207 235 Hop . | . . . . . Pick Up 11 | . 7 2 1 1 Fast Attach 5 | . 3 2 . . Attach 2 | . 2 . . . Detach 1 | . . 1 . . Swap 13 | . 7 5 . 1 Drop 8 | . 4 2 1 1 Fire 65 | . 50 12 . 3 Melee . | . . . . . Ram . | . . . . . Kick . | . . . . . Crush . | . . . . . Escape Stasis . | . . . . . Rewire . | . . . . . Trap . | . . . . . Miscellaneous . | . . . . . Route ------- -11/Junkyard -10/Materials (discovered 4 exits: [*Mat x3] / *Min) -10/Mines (discovered 3 exits: [*Mat x2] / *Exi) -10/Exiles -9/Mines History --------- Turn | Location | Event 1 | -11/Junkyard | Discovered new exit (range 3) 5 | -11/Junkyard | Entered Materials 213 | -10/Materials | Discovered new exit (range 14) 326 | -10/Materials | Build established: Mutant 367 | -10/Materials | Discovered new exit (range 9) 643 | -10/Materials | Core integrity fell below 50% 835 | -10/Materials | Discovered new exit (range 4) 859 | -10/Materials | Identified exit to Mines 967 | -10/Materials | Entered Mines 1022 | -10/Mines | Learned Materials emergency access door positions 1029 | -10/Mines | YI-UF0 nonchalantly dropped a Grenade Launcher on the ground 1085 | -10/Mines | Deemed a non-threat by the Exiles lab entrance 1085 | -10/Mines | Discovered new exit (range 5) 1244 | -10/Mines | Discovered new exit (range 16) 1251 | -10/Mines | Learned Materials trap positions 1295 | -10/Mines | Core integrity fell below 20% 1352 | -10/Mines | Discovered new exit (range 15) 1864 | -10/Mines | Entered Exiles 1892 | -10/Exiles | Met 8R-AWN 1912 | -10/Exiles | Met EX-HEX 1944 | -10/Exiles | Met EX-BIN 1958 | -10/Exiles | Aligned with FarCom system 1959 | -10/Exiles | Given EX-Vault access code 1984 | -10/Exiles | Opened EX-Vault 1990 | -10/Exiles | Found Prototype Device 2014 | -10/Exiles | Warned to stay clear of 0b10 Research branches 2031 | -10/Exiles | Exiles lab attacked by MAIN.C 2084 | -10/Exiles | Discovered new exit (range 10) 2094 | -10/Exiles | Left Exiles lab with Supersonic Drone Bay 2094 | -10/Exiles | Entered Mines 2101 | -9/Mines | Received a Rocket Launcher from a helpful Derelict 2163 | -9/Mines | Received a Mining Laser from a helpful Derelict 2353 | -9/Mines | Found a damaged Exp. Sensor Array with a note attached 2358 | -9/Mines | Assembled infested the area 2376 | -9/Mines | Destroyed by D-53 Grenadier with Mini Grenade Launcher Last Messages --------------- 02366_ C-30 ARC bursts open, deploying its payload. 02366_ D-53 Grenadier unfolds itself. 02368_ as-55701 destroyed. 02368_ 5L-KAT destroyed. 02369_ as-33350 destroyed. 02369_ as-25658 destroyed. 02369_ as-76141 destroyed. 02369_ as-40367 destroyed. 02371_ The unstable cave ceiling collapses. 02371_ Destroyed Asb. Hover Unit. 02371_ as-57794 destroyed. 02374_ as-08226 destroyed. 02374_ Destroyed Asb. F-torch. 02374_ as-75484 destroyed. 02374_ G4-MD5(g) destroyed. 02374_ K-01 Serf destroyed. 02374_ as-39020 destroyed. 02376_ The unstable cave ceiling collapses. 02376_ Lgt. Assault Rifle destroyed. 02376_ Lgt. Treads destroyed. Map ----- +----------------------------------------------------+ | ?????????????????????????????????????????????????? | | ?????????????????????????????????????????????????? | | ?????????????????????????????????????????????????? | | ?????????????????????????????????????????????????? | | ?????????????????????????????????????????????????? | | ?????????????????????????????????????????????????? | | ?????????????????????????????????????????????????? | | ?????????????????????????????????????????????????? | | ?????????????????????????????????????????????????? | | ??????????#??????????????????????????????????????? | | ?????????? ???????????????? ?????????????????????? | | ????????? #???????????????? #????????????????????? | | ####????? #???????????????? #? ????????????????? | | # ##???? #??????????????## ## ????????????????? | | ##?## #???#????????## aa# #????????????????? | | " ## #???# ???????# #????????????????? | | " ##??# ####### #????????????????? | | " ##?# ## % #????????????????? | | ### ## #????????????????? | | # ####### ## # #????????????????? | | ## # #????# =# #???? ???????????? | | ### ## #???## !%* #????? ???????????? | | ####?# #?# ##?### ###???? ???????? ? | | ###### #??###?## #???? ###???? ? | | #??????# ##??? #??? ? | | #??????# t @ d #???# #??# ? | | #### ####??????# ### #???# ### #? | | ???# #?????????# ??# # d ##??# #? | | ???# #?????????# #??###?# #### ## | | #### #?????????## #???????## # | | #??????????##?????????## ##???? # | | #####??????????????????????# r ##???? ? | | #??????????????????????????## ##???? #? | | #???????????????????????????## ## #??? #? | | #????????????????????????????#% ### ##?# #? | | #????????????????????????????# #?## ## #? | | #????????????????????????????# #??### #?? | | #????????????????????????????# #????## ###?? | | #???????????????????????????? ####??## ##???? | | #???????????????????????????? ## #### #????? | | ###########?????????????????##### ## ##????? | | #??????????????????# ##?????? | | #??????????????????### #??????? | | ############????????????????????## #??????? | | ##???###??????????????####???????# #??????? | | #### ######?????????# ##??????# ##??????? | | ?????????# #??????## #???????? | | #????????????## ########## #???????? | | ##????????????# #???????? | | # #????#####????# ########## #???????? | +----------------------------------------------------+ Best States ------------- Heat Dissipation 25 Energy Generation 14 Energy Capacity 250 Matter Stores 300 Matter Capacity 300 Sight Range 16 Robot Scan Range 14 Terrain Scan Range 14 Terrain Scan Density 10 Evasion (%) 55 Recoil Reduction 1 Item Schematics ----------------- None Robot Schematics ------------------ None Fabricated ------------ Nothing Alien Tech Used ----------------- None Achievements -------------- None Challenges ------------ None Game ------ Seed ScanSingularityCapacitor Manual? 0 Play Time 00:37:31 Cumulative 33.7 hours Start 2024.01.12 @ 21:33:23 End 2024.01.16 @ 22:03:46 Sessions 3 Manual Loads 0 Difficulty Rogue Special Mode None Game No. 22 Rogue 22 Adventurer 0 Explorer 0 Win Type - Total 0 Types 0/0/0/0/0/0/0/0/0 Lore% 31 Gallery% 31 Achievement% 29 Wizard Run 0 Options --------- ASCII 0 Keyboard 0 Movement Mouse Keybinds 0 Fullscreen 0 Font 20/Terminus Map View 76x50 Tactical HUD 1 Map Filters NONE Filters NONE Steam 1 RUN: 77584e90-8b74-4758-8663-f836fba1cd23